[Event "Late-Titled-Tuesday-Blitz-May-14-2024"]
[Site "Chess.com"]
[Date "2024.05.14"]
[Round "1"]
[White "Nor1lsk"]
[Black "MusicCityMaster"]
[Result "1-0"]
[WhiteElo "2785"]
[BlackElo "2441"]
[TimeControl "180+1"]
[EndTime "14:07:23 PDT"]
[Termination "Nor1lsk won by resignation"]

1. e4 {[%clk 0:02:59]} 1... e6 {[%clk 0:02:59.9]} 2. b3 {[%clk 0:02:58.4]} 2...
d5 {[%clk 0:02:59.9]} 3. Bb2 {[%clk 0:02:58.8]} 3... dxe4 {[%clk 0:03:00.2]} 4.
Nc3 {[%clk 0:02:58.7]} 4... Nf6 {[%clk 0:03:00.7]} 5. Qe2 {[%clk 0:02:59.1]}
5... Bb4 {[%clk 0:03:01.2]} 6. O-O-O {[%clk 0:02:58.7]} 6... Qe7 {[%clk
0:03:01.5]} 7. Kb1 {[%clk 0:02:58]} 7... a5 {[%clk 0:03:00.3]} 8. a4 {[%clk
0:02:49]} 8... b6 {[%clk 0:02:52.3]} 9. Nxe4 {[%clk 0:02:48.4]} 9... Nbd7 {[%clk
0:02:48.1]} 10. Nf3 {[%clk 0:02:43.2]} 10... Bb7 {[%clk 0:02:43.5]} 11. Nxf6+
{[%clk 0:02:35.6]} 11... Nxf6 {[%clk 0:02:43.3]} 12. Ne5 {[%clk 0:02:34.9]}
12... O-O-O {[%clk 0:02:39.9]} 13. f3 {[%clk 0:01:44.8]} 13... h5 {[%clk
0:02:18.6]} 14. Qf2 {[%clk 0:01:19]} 14... Bc5 {[%clk 0:02:11.7]} 15. d4 {[%clk
0:01:17.5]} 15... Bb4 {[%clk 0:02:05.2]} 16. Bb5 {[%clk 0:01:16.9]} 16... Rd6
{[%clk 0:01:36.5]} 17. c3 {[%clk 0:01:13.2]} 17... c6 {[%clk 0:01:20.8]} 18. Be2
{[%clk 0:01:00.1]} 18... Nd5 {[%clk 0:01:11.4]} 19. cxb4 {[%clk 0:00:59.8]}
19... axb4 {[%clk 0:01:10.7]} 20. Nc4 {[%clk 0:00:59.8]} 20... Rdd8 {[%clk
0:01:09.2]} 21. Rc1 {[%clk 0:00:54.8]} 21... Kb8 {[%clk 0:01:08.3]} 22. Bd3
{[%clk 0:00:54.9]} 22... h4 {[%clk 0:00:58]} 23. Be4 {[%clk 0:00:48.3]} 23...
Nf4 {[%clk 0:00:55.1]} 24. Nxb6 {[%clk 0:00:46.2]} 24... Qc7 {[%clk 0:00:50.4]}
25. a5 {[%clk 0:00:45.9]} 25... Rh5 {[%clk 0:00:49.6]} 26. Rc5 {[%clk
0:00:44.4]} 26... Rxc5 {[%clk 0:00:47.1]} 27. dxc5 {[%clk 0:00:44.5]} 27... Nd3
{[%clk 0:00:47.5]} 28. Qc2 {[%clk 0:00:39.7]} 28... Nxb2 {[%clk 0:00:40.5]} 29.
Qxb2 {[%clk 0:00:38]} 29... f6 {[%clk 0:00:39]} 30. Qc2 {[%clk 0:00:35.2]} 30...
Ba6 {[%clk 0:00:19.6]} 31. Rd1 {[%clk 0:00:34]} 31... Bb5 {[%clk 0:00:15.4]} 32.
Nc4 {[%clk 0:00:27.6]} 32... f5 {[%clk 0:00:13.6]} 33. Bd3 {[%clk 0:00:25.9]}
33... Rd5 {[%clk 0:00:14.2]} 34. Nd6 {[%clk 0:00:25.3]} 34... Bxd3 {[%clk
0:00:12.9]} 35. Rxd3 {[%clk 0:00:25.2]} 35... Qxa5 {[%clk 0:00:13.2]} 36. Rxd5
{[%clk 0:00:25.2]} 36... exd5 {[%clk 0:00:11.3]} 37. Nxf5 {[%clk 0:00:24.6]}
37... Qb5 {[%clk 0:00:10.5]} 38. Nd4 {[%clk 0:00:23.9]} 38... Qf1+ {[%clk
0:00:08.9]} 39. Kb2 {[%clk 0:00:24.2]} 39... g6 {[%clk 0:00:07.5]} 40. Nxc6+
{[%clk 0:00:24]} 40... Kc7 {[%clk 0:00:07.6]} 41. Nxb4 {[%clk 0:00:24.9]} 41...
g5 {[%clk 0:00:06.3]} 42. Nxd5+ {[%clk 0:00:24.5]} 42... Kc6 {[%clk 0:00:06.4]}
43. Nb4+ {[%clk 0:00:24.6]} 43... Kb5 {[%clk 0:00:07]} 44. Qc4+ {[%clk
0:00:23.5]} 44... Qxc4 {[%clk 0:00:06.4]} 45. bxc4+ {[%clk 0:00:24.4]} 45...
Kxc5 {[%clk 0:00:07.3]} 46. Kc3 {[%clk 0:00:24.5]} 1-0

[Event "Late-Titled-Tuesday-Blitz-May-14-2024"]
[Site "Chess.com"]
[Date "2024.05.14"]
[Round "1"]
[White "vpsetter"]
[Black "Kiborg95"]
[Result "0-1"]
[WhiteElo "2511"]
[BlackElo "2909"]
[TimeControl "180+1"]
[EndTime "14:07:24 PDT"]
[Termination "Kiborg95 won by resignation"]

1. e4 {[%clk 0:03:00.2]} 1... d6 {[%clk 0:03:00.2]} 2. d4 {[%clk 0:03:00.4]}
2... Nf6 {[%clk 0:03:00.9]} 3. Nc3 {[%clk 0:03:00.9]} 3... e5 {[%clk 0:03:01.4]}
4. Nf3 {[%clk 0:02:59.7]} 4... Nbd7 {[%clk 0:03:01.8]} 5. Bc4 {[%clk 0:03:00.2]}
5... Be7 {[%clk 0:03:02.2]} 6. O-O {[%clk 0:03:00.7]} 6... O-O {[%clk 0:03:03]}
7. a4 {[%clk 0:03:00.2]} 7... c6 {[%clk 0:03:03.5]} 8. Re1 {[%clk 0:03:00.8]}
8... h6 {[%clk 0:03:03.7]} 9. Ba2 {[%clk 0:02:58.8]} 9... a5 {[%clk 0:03:03.4]}
10. h3 {[%clk 0:02:58.8]} 10... Re8 {[%clk 0:03:03.9]} 11. Be3 {[%clk 0:02:54]}
11... exd4 {[%clk 0:03:04.1]} 12. Nxd4 {[%clk 0:02:45.4]} 12... Bf8 {[%clk
0:03:04.5]} 13. f3 {[%clk 0:02:33.2]} 13... Ne5 {[%clk 0:02:40.1]} 14. Qd2
{[%clk 0:02:30]} 14... Ng6 {[%clk 0:02:40.4]} 15. Rad1 {[%clk 0:02:27.2]} 15...
Bd7 {[%clk 0:02:40.8]} 16. Nde2 {[%clk 0:02:23.1]} 16... Be6 {[%clk 0:02:29.1]}
17. Bxe6 {[%clk 0:02:19.7]} 17... fxe6 {[%clk 0:02:30]} 18. Nf4 {[%clk
0:01:29.5]} 18... Ne5 {[%clk 0:02:29.7]} 19. Qf2 {[%clk 0:01:24]} 19... Nc4
{[%clk 0:02:03.3]} 20. Bc1 {[%clk 0:01:23.1]} 20... Qc7 {[%clk 0:02:03.8]} 21.
Ng6 {[%clk 0:01:19.1]} 21... d5 {[%clk 0:01:53.4]} 22. b3 {[%clk 0:01:11.6]}
22... Bb4 {[%clk 0:01:49.2]} 23. Rd3 {[%clk 0:00:45.6]} 23... Qf7 {[%clk
0:00:57.3]} 24. Qg3 {[%clk 0:00:43.4]} 24... Nd6 {[%clk 0:00:38.1]} 25. Ne5
{[%clk 0:00:33.6]} 25... Qh5 {[%clk 0:00:38.3]} 26. Bd2 {[%clk 0:00:25.4]} 26...
Rad8 {[%clk 0:00:21.5]} 27. Ng4 {[%clk 0:00:25.4]} 27... Nxg4 {[%clk 0:00:20.7]}
28. hxg4 {[%clk 0:00:25.9]} 28... Qg6 {[%clk 0:00:21.2]} 29. e5 {[%clk
0:00:13.2]} 29... Nf7 {[%clk 0:00:21.5]} 30. f4 {[%clk 0:00:12.7]} 30... h5
{[%clk 0:00:13.9]} 31. Qh4 {[%clk 0:00:11.6]} 31... Qxg4 {[%clk 0:00:12.5]} 32.
Qxg4 {[%clk 0:00:11.2]} 32... hxg4 {[%clk 0:00:13.4]} 33. f5 {[%clk 0:00:11.8]}
33... exf5 {[%clk 0:00:11.4]} 34. e6 {[%clk 0:00:12.4]} 34... Nd6 {[%clk
0:00:11.4]} 35. Bg5 {[%clk 0:00:12.1]} 35... Rc8 {[%clk 0:00:11.4]} 36. Re2
{[%clk 0:00:10.9]} 36... Bxc3 {[%clk 0:00:11.4]} 37. Rxc3 {[%clk 0:00:11]} 37...
Ne4 {[%clk 0:00:12.3]} 0-1

[Event "Late-Titled-Tuesday-Blitz-May-14-2024"]
[Site "Chess.com"]
[Date "2024.05.14"]
[Round "1"]
[White "alexg2003"]
[Black "Cuchulin"]
[Result "1-0"]
[WhiteElo "2593"]
[BlackElo "2225"]
[TimeControl "180+1"]
[EndTime "14:07:26 PDT"]
[Termination "alexg2003 won on time"]

1. e4 {[%clk 0:02:56.7]} 1... c5 {[%clk 0:02:58.7]} 2. Nf3 {[%clk 0:02:56.7]}
2... Nc6 {[%clk 0:02:58.5]} 3. Nc3 {[%clk 0:02:54.2]} 3... g6 {[%clk 0:02:57.9]}
4. Bb5 {[%clk 0:02:54]} 4... Bg7 {[%clk 0:02:58.1]} 5. O-O {[%clk 0:02:52.6]}
5... Nf6 {[%clk 0:02:55.3]} 6. Bxc6 {[%clk 0:02:51.9]} 6... dxc6 {[%clk
0:02:52.7]} 7. d3 {[%clk 0:02:51]} 7... O-O {[%clk 0:02:52.1]} 8. Qe2 {[%clk
0:02:47.8]} 8... Bg4 {[%clk 0:02:47.7]} 9. h3 {[%clk 0:02:40.7]} 9... Bxf3
{[%clk 0:02:47.4]} 10. Qxf3 {[%clk 0:02:40.9]} 10... Nd7 {[%clk 0:02:47.3]} 11.
Bd2 {[%clk 0:02:31.1]} 11... c4 {[%clk 0:02:33.3]} 12. Rad1 {[%clk 0:02:02.8]}
12... cxd3 {[%clk 0:02:32.4]} 13. Qxd3 {[%clk 0:02:03.2]} 13... Ne5 {[%clk
0:02:29]} 14. Qe2 {[%clk 0:02:03.3]} 14... Qb6 {[%clk 0:02:26.4]} 15. b3 {[%clk
0:01:59.9]} 15... Rfd8 {[%clk 0:02:17.1]} 16. Na4 {[%clk 0:01:50.7]} 16... Qc7
{[%clk 0:02:10.8]} 17. Be3 {[%clk 0:01:42]} 17... b6 {[%clk 0:02:10.4]} 18. f4
{[%clk 0:01:26.1]} 18... Nd7 {[%clk 0:02:09.2]} 19. c4 {[%clk 0:01:24.4]} 19...
Nf8 {[%clk 0:01:54.5]} 20. f5 {[%clk 0:01:05.5]} 20... Be5 {[%clk 0:01:31.1]}
21. Nb2 {[%clk 0:00:57.5]} 21... Rxd1 {[%clk 0:01:07.6]} 22. Rxd1 {[%clk
0:00:57.3]} 22... Rd8 {[%clk 0:01:08.1]} 23. Rxd8 {[%clk 0:00:48.2]} 23... Qxd8
{[%clk 0:01:07.3]} 24. Qd3 {[%clk 0:00:46.3]} 24... Qc7 {[%clk 0:00:56.1]} 25.
Nd1 {[%clk 0:00:45.3]} 25... Nd7 {[%clk 0:00:54.3]} 26. Nf2 {[%clk 0:00:44.4]}
26... Nf6 {[%clk 0:00:53.9]} 27. a4 {[%clk 0:00:34.6]} 27... Kg7 {[%clk
0:00:49.6]} 28. Bd4 {[%clk 0:00:29.4]} 28... Qd6 {[%clk 0:00:35.7]} 29. Bxe5
{[%clk 0:00:26.1]} 29... Qxe5 {[%clk 0:00:36.6]} 30. g3 {[%clk 0:00:24]} 30...
h5 {[%clk 0:00:30.1]} 31. Kg2 {[%clk 0:00:22.8]} 31... h4 {[%clk 0:00:28.1]} 32.
g4 {[%clk 0:00:20]} 32... g5 {[%clk 0:00:23.9]} 33. Qe3 {[%clk 0:00:19]} 33...
Kh6 {[%clk 0:00:22.9]} 34. Qd3 {[%clk 0:00:18.5]} 34... Kg7 {[%clk 0:00:14.1]}
35. Qf3 {[%clk 0:00:18.7]} 35... Kh6 {[%clk 0:00:11.2]} 36. Kf1 {[%clk
0:00:17.8]} 36... Qd4 {[%clk 0:00:06.2]} 37. Kg2 {[%clk 0:00:16.9]} 37... c5
{[%clk 0:00:05.5]} 38. Qe2 {[%clk 0:00:08.3]} 38... Qe5 {[%clk 0:00:02.7]} 39.
Qe3 {[%clk 0:00:07.5]} 1-0

[Event "Late-Titled-Tuesday-Blitz-May-14-2024"]
[Site "Chess.com"]
[Date "2024.05.14"]
[Round "1"]
[White "ritanovikova"]
[Black "RantomOpening"]
[Result "0-1"]
[WhiteElo "2165"]
[BlackElo "2577"]
[TimeControl "180+1"]
[EndTime "14:07:27 PDT"]
[Termination "RantomOpening won on time"]

1. e4 {[%clk 0:02:58.2]} 1... c5 {[%clk 0:02:59.5]} 2. Nc3 {[%clk 0:02:57.3]}
2... e6 {[%clk 0:02:59.5]} 3. Nf3 {[%clk 0:02:55.2]} 3... Nc6 {[%clk 0:02:59.6]}
4. d4 {[%clk 0:02:54.7]} 4... cxd4 {[%clk 0:03:00.5]} 5. Nxd4 {[%clk 0:02:55.6]}
5... Nf6 {[%clk 0:03:01]} 6. Nxc6 {[%clk 0:02:55.4]} 6... bxc6 {[%clk
0:03:01.9]} 7. e5 {[%clk 0:02:54.5]} 7... Nd5 {[%clk 0:03:01.6]} 8. Nxd5 {[%clk
0:02:54.3]} 8... cxd5 {[%clk 0:03:01.2]} 9. Bd3 {[%clk 0:02:49.4]} 9... Qc7
{[%clk 0:03:00.7]} 10. Bf4 {[%clk 0:02:46]} 10... d6 {[%clk 0:02:52.4]} 11. Bb5+
{[%clk 0:02:37.6]} 11... Bd7 {[%clk 0:02:52.1]} 12. Bxd7+ {[%clk 0:02:37.1]}
12... Qxd7 {[%clk 0:02:53]} 13. O-O {[%clk 0:02:37.4]} 13... dxe5 {[%clk
0:02:49.6]} 14. Bxe5 {[%clk 0:02:37.1]} 14... f6 {[%clk 0:02:44.3]} 15. Bc3
{[%clk 0:02:31.2]} 15... Bd6 {[%clk 0:02:43.9]} 16. Qg4 {[%clk 0:02:26.3]} 16...
O-O {[%clk 0:02:43.1]} 17. Rfe1 {[%clk 0:02:24.8]} 17... Rae8 {[%clk 0:02:41]}
18. Rad1 {[%clk 0:02:19.8]} 18... Qf7 {[%clk 0:02:34.3]} 19. h4 {[%clk
0:02:17.5]} 19... e5 {[%clk 0:02:33.4]} 20. h5 {[%clk 0:02:01.4]} 20... d4
{[%clk 0:02:32.8]} 21. Bd2 {[%clk 0:01:57.4]} 21... f5 {[%clk 0:02:31.4]} 22.
Qh3 {[%clk 0:01:53.6]} 22... h6 {[%clk 0:02:24.1]} 23. a3 {[%clk 0:01:28.4]}
23... Qc4 {[%clk 0:02:04.2]} 24. Rc1 {[%clk 0:01:22]} 24... e4 {[%clk
0:02:04.1]} 25. b3 {[%clk 0:00:51.1]} 25... Qd5 {[%clk 0:02:01.3]} 26. c4 {[%clk
0:00:48]} 26... Qe5 {[%clk 0:01:32.1]} 27. b4 {[%clk 0:00:34.6]} 27... f4 {[%clk
0:01:28.4]} 28. c5 {[%clk 0:00:34.1]} 28... e3 {[%clk 0:01:14.8]} 29. Rcd1
{[%clk 0:00:18.4]} 29... Bc7 {[%clk 0:01:09.8]} 30. fxe3 {[%clk 0:00:18]} 30...
fxe3 {[%clk 0:00:54.2]} 31. Bc1 {[%clk 0:00:17.8]} 31... Rf5 {[%clk 0:00:46.6]}
32. g4 {[%clk 0:00:12.4]} 32... Rf2 {[%clk 0:00:45.6]} 33. Rf1 {[%clk
0:00:08.2]} 33... Rh2 {[%clk 0:00:33.9]} 34. Qf3 {[%clk 0:00:07.7]} 34... Qg3+
{[%clk 0:00:27.2]} 35. Qxg3 {[%clk 0:00:07.7]} 35... Bxg3 {[%clk 0:00:28.1]} 36.
Rde1 {[%clk 0:00:05.1]} 36... Bxe1 {[%clk 0:00:26.3]} 37. Rxe1 {[%clk
0:00:04.6]} 37... Rc2 {[%clk 0:00:24.7]} 0-1

[Event "Late-Titled-Tuesday-Blitz-May-14-2024"]
[Site "Chess.com"]
[Date "2024.05.14"]
[Round "1"]
[White "Lady_Nika"]
[Black "moro182"]
[Result "0-1"]
[WhiteElo "2503"]
[BlackElo "2898"]
[TimeControl "180+1"]
[EndTime "14:07:28 PDT"]
[Termination "moro182 won by checkmate"]

1. d4 {[%clk 0:02:50.3]} 1... g6 {[%clk 0:03:00.9]} 2. c4 {[%clk 0:02:50.2]}
2... Bg7 {[%clk 0:02:55.7]} 3. Nc3 {[%clk 0:02:50.1]} 3... d6 {[%clk 0:02:56.1]}
4. e4 {[%clk 0:02:50.3]} 4... c5 {[%clk 0:02:56.5]} 5. d5 {[%clk 0:02:50.4]}
5... Bxc3+ {[%clk 0:02:57.4]} 6. bxc3 {[%clk 0:02:50.3]} 6... e5 {[%clk
0:02:58.3]} 7. Bd3 {[%clk 0:02:49.6]} 7... Qe7 {[%clk 0:02:57.3]} 8. Ne2 {[%clk
0:02:49.5]} 8... f5 {[%clk 0:02:50.8]} 9. f3 {[%clk 0:01:52.2]} 9... f4 {[%clk
0:02:43.9]} 10. Bd2 {[%clk 0:01:43.7]} 10... g5 {[%clk 0:02:42.7]} 11. h3 {[%clk
0:01:41]} 11... Nf6 {[%clk 0:02:37.1]} 12. Qa4+ {[%clk 0:01:38.5]} 12... Nbd7
{[%clk 0:02:35.1]} 13. O-O-O {[%clk 0:01:38]} 13... Kd8 {[%clk 0:02:24]} 14. g3
{[%clk 0:01:26.4]} 14... Kc7 {[%clk 0:02:18.2]} 15. g4 {[%clk 0:01:26.2]} 15...
Nb6 {[%clk 0:02:05.2]} 16. Qa5 {[%clk 0:01:25.7]} 16... h5 {[%clk 0:02:01.2]}
17. Kb1 {[%clk 0:01:16.4]} 17... Bd7 {[%clk 0:02:00.2]} 18. Ka1 {[%clk
0:01:14.8]} 18... Qh7 {[%clk 0:01:53.4]} 19. Rhf1 {[%clk 0:01:05.8]} 19... hxg4
{[%clk 0:01:44.3]} 20. hxg4 {[%clk 0:01:05.7]} 20... Qe7 {[%clk 0:01:43.8]} 21.
Rh1 {[%clk 0:01:02.8]} 21... Rh4 {[%clk 0:01:41.9]} 22. Rxh4 {[%clk 0:00:56.7]}
22... gxh4 {[%clk 0:01:42.8]} 23. Ng1 {[%clk 0:00:57.1]} 23... Nh7 {[%clk
0:01:41.7]} 24. Nh3 {[%clk 0:00:56.5]} 24... Ng5 {[%clk 0:01:41.7]} 25. Nxg5
{[%clk 0:00:56.3]} 25... Qxg5 {[%clk 0:01:42.6]} 26. Bf1 {[%clk 0:00:54.3]}
26... Rh8 {[%clk 0:01:37.9]} 27. Bh3 {[%clk 0:00:54.1]} 27... Kb8 {[%clk
0:01:36.3]} 28. Rb1 {[%clk 0:00:47.9]} 28... Qd8 {[%clk 0:01:33.9]} 29. Be1
{[%clk 0:00:43.5]} 29... Qc7 {[%clk 0:01:23]} 30. Qa3 {[%clk 0:00:28]} 30...
Nxc4 {[%clk 0:01:20.9]} 31. Qc1 {[%clk 0:00:28.1]} 31... Qa5 {[%clk 0:01:14.2]}
32. Bf1 {[%clk 0:00:17.5]} 32... Ne3 {[%clk 0:01:08.5]} 33. Qb2 {[%clk
0:00:15.2]} 33... b6 {[%clk 0:01:04.7]} 34. Bh3 {[%clk 0:00:15.1]} 34... Qa4
{[%clk 0:01:00]} 35. Rc1 {[%clk 0:00:12.3]} 35... Bb5 {[%clk 0:00:56.1]} 36. Bf2
{[%clk 0:00:07.5]} 36... Bd3 {[%clk 0:00:51.6]} 37. Bxe3 {[%clk 0:00:06.3]}
37... fxe3 {[%clk 0:00:52.5]} 38. Re1 {[%clk 0:00:06.1]} 38... e2 {[%clk
0:00:51.2]} 39. g5 {[%clk 0:00:06.1]} 39... Qd1+ {[%clk 0:00:47]} 40. Qc1 {[%clk
0:00:06]} 40... Qxc1+ {[%clk 0:00:47.4]} 41. Rxc1 {[%clk 0:00:05.9]} 41... Rg8
{[%clk 0:00:48.3]} 42. Rg1 {[%clk 0:00:03.9]} 42... Rxg5 {[%clk 0:00:47.3]} 43.
Rxg5 {[%clk 0:00:01.6]} 43... e1=Q+ {[%clk 0:00:40.7]} 44. Kb2 {[%clk
0:00:02.5]} 44... Qd2+ {[%clk 0:00:36]} 45. Ka3 {[%clk 0:00:03.4]} 45... Qxc3+
{[%clk 0:00:34.8]} 46. Ka4 {[%clk 0:00:03]} 46... b5# {[%clk 0:00:33.1]} 0-1

[Event "Late-Titled-Tuesday-Blitz-May-14-2024"]
[Site "Chess.com"]
[Date "2024.05.14"]
[Round "1"]
[White "Kosak12"]
[Black "KirAk47"]
[Result "1-0"]
[WhiteElo "2773"]
[BlackElo "2437"]
[TimeControl "180+1"]
[EndTime "14:07:28 PDT"]
[Termination "Kosak12 won by resignation"]

1. e4 {[%clk 0:03:00.9]} 1... c5 {[%clk 0:02:59]} 2. Nf3 {[%clk 0:03:00.4]} 2...
d6 {[%clk 0:02:56.5]} 3. d4 {[%clk 0:02:59.8]} 3... cxd4 {[%clk 0:02:53.2]} 4.
Nxd4 {[%clk 0:03:00.7]} 4... Nf6 {[%clk 0:02:51.9]} 5. Nc3 {[%clk 0:03:00.9]}
5... a6 {[%clk 0:02:52.5]} 6. Bg5 {[%clk 0:02:48.7]} 6... e6 {[%clk 0:02:44]} 7.
f4 {[%clk 0:02:45.1]} 7... Qb6 {[%clk 0:02:39.8]} 8. Qd2 {[%clk 0:02:41.5]} 8...
Qxb2 {[%clk 0:02:34.7]} 9. Rb1 {[%clk 0:02:39.9]} 9... Qa3 {[%clk 0:02:33.7]}
10. e5 {[%clk 0:02:38.8]} 10... h6 {[%clk 0:02:24.8]} 11. Bh4 {[%clk 0:02:38.4]}
11... dxe5 {[%clk 0:02:20.1]} 12. fxe5 {[%clk 0:02:38.5]} 12... g5 {[%clk
0:02:18.2]} 13. exf6 {[%clk 0:02:22.5]} 13... gxh4 {[%clk 0:02:15.5]} 14. Be2
{[%clk 0:02:22.5]} 14... Nd7 {[%clk 0:01:46.3]} 15. O-O {[%clk 0:01:37.1]} 15...
Qa5 {[%clk 0:01:45.7]} 16. Kh1 {[%clk 0:01:37]} 16... Qg5 {[%clk 0:00:58.6]} 17.
Rf4 {[%clk 0:01:36.8]} 17... e5 {[%clk 0:00:23.4]} 18. Nd5 {[%clk 0:01:36.5]}
18... exf4 {[%clk 0:00:24]} 19. Nc7+ {[%clk 0:01:32]} 19... Kd8 {[%clk
0:00:24.6]} 20. Nde6+ {[%clk 0:01:30.7]} 20... fxe6 {[%clk 0:00:18.8]} 21. Nxe6+
{[%clk 0:01:31.6]} 21... Ke8 {[%clk 0:00:17.6]} 22. Nxg5 {[%clk 0:01:08.4]}
22... hxg5 {[%clk 0:00:18.5]} 23. Re1 {[%clk 0:01:07.7]} 23... Kd8 {[%clk
0:00:15.6]} 24. Bg4 {[%clk 0:00:45.1]} 24... Kc7 {[%clk 0:00:15.9]} 25. Re8
{[%clk 0:00:44]} 25... Bb4 {[%clk 0:00:13.3]} 26. Qe2 {[%clk 0:00:16.6]} 26...
Rxe8 {[%clk 0:00:11.1]} 27. Qxe8 {[%clk 0:00:17.5]} 27... Nb6 {[%clk 0:00:06.5]}
28. Qe5+ {[%clk 0:00:11.3]} 28... Bd6 {[%clk 0:00:05.7]} 29. Qc3+ {[%clk
0:00:11.5]} 29... Kb8 {[%clk 0:00:02.8]} 30. Bxc8 {[%clk 0:00:09.7]} 30... Nxc8
{[%clk 0:00:01.7]} 31. f7 {[%clk 0:00:10.6]} 31... Ka7 {[%clk 0:00:02]} 32. Qd4+
{[%clk 0:00:10.7]} 32... b6 {[%clk 0:00:01.9]} 33. Qg7 {[%clk 0:00:10.1]} 33...
Be7 {[%clk 0:00:02.3]} 34. f8=Q {[%clk 0:00:09.9]} 34... Rb8 {[%clk 0:00:02.7]}
35. Qf5 {[%clk 0:00:08]} 35... Rb7 {[%clk 0:00:03.1]} 36. h3 {[%clk 0:00:08.1]}
36... Nd6 {[%clk 0:00:03]} 37. Qd5 {[%clk 0:00:07.6]} 37... Bd8 {[%clk
0:00:01.3]} 38. Qgd4 {[%clk 0:00:06.5]} 38... Rd7 {[%clk 0:00:01.2]} 39. Qxd6
{[%clk 0:00:06.4]} 39... Rxd6 {[%clk 0:00:01.5]} 40. Qxd6 {[%clk 0:00:07.3]} 1-0

[Event "Late-Titled-Tuesday-Blitz-May-14-2024"]
[Site "Chess.com"]
[Date "2024.05.14"]
[Round "1"]
[White "balack95"]
[Black "AlexeiShirov"]
[Result "0-1"]
[WhiteElo "2517"]
[BlackElo "2917"]
[TimeControl "180+1"]
[EndTime "14:07:30 PDT"]
[Termination "AlexeiShirov won by resignation"]

1. Nf3 {[%clk 0:03:00.3]} 1... d5 {[%clk 0:02:59.1]} 2. c4 {[%clk 0:03:01]} 2...
c6 {[%clk 0:02:58.2]} 3. cxd5 {[%clk 0:03:00.2]} 3... cxd5 {[%clk 0:02:57.7]} 4.
d4 {[%clk 0:03:00.9]} 4... Nf6 {[%clk 0:02:56.4]} 5. Nc3 {[%clk 0:03:01.4]} 5...
Nc6 {[%clk 0:02:55.3]} 6. Bf4 {[%clk 0:03:02]} 6... a6 {[%clk 0:02:55.1]} 7. Rc1
{[%clk 0:03:01.1]} 7... Qb6 {[%clk 0:02:52.9]} 8. e3 {[%clk 0:02:53.7]} 8...
Qxb2 {[%clk 0:02:50.8]} 9. Be2 {[%clk 0:02:50.3]} 9... e5 {[%clk 0:02:40.1]} 10.
dxe5 {[%clk 0:02:49.2]} 10... Bb4 {[%clk 0:02:38.7]} 11. O-O {[%clk 0:02:49.2]}
11... Bxc3 {[%clk 0:02:35.1]} 12. exf6 {[%clk 0:02:48.2]} 12... Bxf6 {[%clk
0:02:34]} 13. Bd6 {[%clk 0:02:38.6]} 13... Be7 {[%clk 0:02:25.4]} 14. Bxe7
{[%clk 0:02:34.7]} 14... Nxe7 {[%clk 0:02:21.2]} 15. Rc7 {[%clk 0:02:28.9]}
15... Qb6 {[%clk 0:02:17.9]} 16. Rxe7+ {[%clk 0:02:15.9]} 16... Kxe7 {[%clk
0:02:16.9]} 17. Qxd5 {[%clk 0:02:16.5]} 17... Be6 {[%clk 0:02:06.5]} 18. Qg5+
{[%clk 0:02:16.3]} 18... Kf8 {[%clk 0:02:05.7]} 19. Nd4 {[%clk 0:02:14.6]} 19...
h6 {[%clk 0:02:03.3]} 20. Nxe6+ {[%clk 0:02:13.3]} 20... Qxe6 {[%clk 0:02:02.3]}
21. Qc5+ {[%clk 0:02:12.6]} 21... Qe7 {[%clk 0:02:01.9]} 22. Qb6 {[%clk
0:02:08.8]} 22... Rc8 {[%clk 0:01:49.7]} 23. Bf3 {[%clk 0:02:07.7]} 23... Rc7
{[%clk 0:01:25.8]} 24. h3 {[%clk 0:01:39.2]} 24... g6 {[%clk 0:01:24.2]} 25. Qb2
{[%clk 0:01:31.6]} 25... Kg8 {[%clk 0:01:21.9]} 26. Bd5 {[%clk 0:01:22.1]} 26...
Kh7 {[%clk 0:01:21]} 27. e4 {[%clk 0:01:22.6]} 27... Rhc8 {[%clk 0:01:17.4]} 28.
Qb6 {[%clk 0:01:10.8]} 28... Rc1 {[%clk 0:01:07.7]} 29. Qxb7 {[%clk 0:01:04.9]}
29... Rxf1+ {[%clk 0:01:02.7]} 30. Kxf1 {[%clk 0:01:05.8]} 30... Qxb7 {[%clk
0:01:02]} 31. Bxb7 {[%clk 0:01:06.2]} 31... Rc1+ {[%clk 0:01:01.7]} 32. Ke2
{[%clk 0:01:05.5]} 32... Rc2+ {[%clk 0:01:01.1]} 33. Ke3 {[%clk 0:01:05.8]}
33... Rxa2 {[%clk 0:01:00.6]} 34. Bd5 {[%clk 0:01:06.7]} 34... Ra3+ {[%clk
0:01:00.2]} 35. Kd4 {[%clk 0:01:06.9]} 35... Kg7 {[%clk 0:01:00]} 36. f4 {[%clk
0:01:07.5]} 36... a5 {[%clk 0:00:59.3]} 37. Kc5 {[%clk 0:01:03.3]} 37... Ra1
{[%clk 0:00:55.6]} 38. f5 {[%clk 0:00:59.1]} 38... gxf5 {[%clk 0:00:53.9]} 39.
exf5 {[%clk 0:00:59.3]} 39... a4 {[%clk 0:00:51.4]} 40. Kb4 {[%clk 0:00:59.4]}
40... a3 {[%clk 0:00:50.5]} 41. Bb3 {[%clk 0:00:47.1]} 41... a2 {[%clk
0:00:48.1]} 42. Ka3 {[%clk 0:00:47.7]} 42... Rg1 {[%clk 0:00:47.6]} 43. Bxa2
{[%clk 0:00:47.4]} 43... Rxg2 {[%clk 0:00:46.8]} 44. Kb3 {[%clk 0:00:35]} 44...
Rg3+ {[%clk 0:00:45.6]} 45. Kc4 {[%clk 0:00:35.2]} 45... Rxh3 {[%clk 0:00:45]}
46. Kd4 {[%clk 0:00:35.9]} 46... Kf6 {[%clk 0:00:44.1]} 47. Ke4 {[%clk
0:00:36.4]} 47... Rh4+ {[%clk 0:00:43.4]} 48. Kf3 {[%clk 0:00:36.3]} 48... Rh5
{[%clk 0:00:42.8]} 49. Kg4 {[%clk 0:00:34.2]} 49... Rg5+ {[%clk 0:00:42.1]} 50.
Kh4 {[%clk 0:00:32.2]} 50... Rxf5 {[%clk 0:00:41.8]} 51. Bb1 {[%clk 0:00:32.9]}
51... Rf4+ {[%clk 0:00:40.9]} 52. Kh5 {[%clk 0:00:33.3]} 52... Kg7 {[%clk
0:00:40.3]} 53. Bc2 {[%clk 0:00:31]} 53... Rc4 {[%clk 0:00:39.4]} 54. Bd3 {[%clk
0:00:30.9]} 54... Rc5+ {[%clk 0:00:39]} 55. Kh4 {[%clk 0:00:30.5]} 55... Rg5
{[%clk 0:00:38.4]} 56. Be4 {[%clk 0:00:30.1]} 56... f5 {[%clk 0:00:37.9]} 57.
Bf3 {[%clk 0:00:30.6]} 57... Kf6 {[%clk 0:00:37.6]} 58. Bh5 {[%clk 0:00:30.3]}
58... Ke5 {[%clk 0:00:37.3]} 59. Bf3 {[%clk 0:00:30.7]} 59... f4 {[%clk
0:00:37]} 60. Bc6 {[%clk 0:00:29.2]} 60... Kd4 {[%clk 0:00:36.8]} 61. Bf3 {[%clk
0:00:29.4]} 61... Ke3 {[%clk 0:00:36.5]} 0-1